fUSD/lending_fUSD_20260518
["ID","MTS","AMOUNT","RATE_DAILY","PERIOD"]
[422564896,1779090638000,-9842.1464314,0.0001415,2]
[422564897,1779090638000,-273.2694314,0.0001415,2]
[422564898,1779090638000,-502.74600003,0.0001415,2]
[422564899,1779090638000,-780.86,0.0001415,2]
[422564900,1779090638000,-961.24095802,0.0001415,2]
[422564892,1779090638000,-6199.04490074,0.0001415,2]
[422564902,1779090640000,-652.04183587,0.0001415,2]
[422564903,1779090641000,-1497.39788495,0.0001415,2]
[422564927,1779090643000,-683.58162975,0.0001415,2]
[422564928,1779090643000,-3521.68008655,0.0001415,2]
[422564929,1779090643000,-1226.85239246,0.0001415,2]
[422564926,1779090643000,-4399.84067227,0.0001415,2]
[422564930,1779090643000,-454.68174005,0.0001415,2]
[422564931,1779090643000,-417.63927452,0.0001415,2]
[422564932,1779090643000,-768.33717356,0.0001415,2]
[422564933,1779090643000,-1498.86932681,0.0001415,2]
[422565022,1779090646000,-1354.8525,0.0001425,2]
[422565008,1779090646000,-500.0,0.0001394,2]
[422565010,1779090646000,-212.10471979,0.00014149,2]
[422565011,1779090646000,-1860.47248506,0.0001415,2]
[422565013,1779090646000,-500.0,0.00014164,2]
[422565012,1779090646000,-166.88,0.00014155,2]
[422565018,1779090646000,-676.76815323,0.0001425,2]
[422565009,1779090646000,-156.88689892,0.00014149,2]
[422565021,1779090646000,-30911.68022877,0.0001425,2]
[422565016,1779090646000,-174.0006625,0.00014241,2]
[422565014,1779090646000,-500.0,0.00014178,2]
[422565017,1779090646000,-208.800795,0.00014241,2]
[422565015,1779090646000,-790.96,0.00014178,2]
[422565019,1779090646000,-892.1537331,0.0001425,2]
[422565023,1779090646000,-4580.66725332,0.0001425,2]
[422565020,1779090646000,-2785.53704267,0.0001425,2]
[422565029,1779090734000,500.0,0.00030137,120]
[422565030,1779090790000,1000.0,0.00030137,120]
[422565032,1779091009000,278.0,0.0003013,120]
[422565036,1779091152000,283.6,7.357e-05,2]
[422565035,1779091152000,283.6,7.02e-05,2]
[422565034,1779091152000,283.6,6.682e-05,2]
[422565040,1779091153000,283.6,8.709e-05,2]
[422565039,1779091153000,283.6,8.371e-05,2]
[422565038,1779091153000,283.6,8.033e-05,2]
[422565037,1779091153000,283.6,7.695e-05,2]
[422565043,1779091154000,283.6,9.722e-05,2]
[422565042,1779091154000,283.6,9.385e-05,2]
[422565041,1779091154000,283.6,9.047e-05,2]
[422565044,1779091184000,1000.0,0.00030136,120]
[422565045,1779091191000,1000.0,0.00030136,120]
[422565046,1779091199000,1000.0,0.00030136,120]
[422565047,1779091213000,1323.79738179,0.00030136,120]
[422565049,1779091256000,175.42,9.768e-05,2]
[422565052,1779091357000,341.52,0.00030082,120]
[422565055,1779091458000,-264.32121441,0.0001028,2]
[422565056,1779091458000,-283.6,0.00010398,2]
[422565057,1779091458000,-168.47878559,0.00010672,2]
[422565054,1779091458000,-283.6,0.0001006,2]
[422565061,1779091459000,-283.6,0.00011074,2]
[422565062,1779091459000,-72.63635677,0.00011412,2]
[422565060,1779091459000,-264.32121441,0.00011063,2]
[422565059,1779091459000,-283.6,0.00010736,2]
[422565058,1779091459000,-95.84242882,0.00010672,2]
[422565063,1779091460000,-210.96364323,0.00011412,2]
[422565064,1779091460000,-215.11887611,0.00011427,2]
[422565065,1779091460000,-264.32121441,0.00011454,2]
[422565067,1779091460000,-25.99626625,0.00011828,2]
[422565066,1779091460000,-283.6,0.0001175,2]
[422565072,1779091460000,-264.32121441,0.00012237,2]
[422565069,1779091460000,-198.08626625,0.00011846,2]
[422565070,1779091460000,-66.23494816,0.00011846,2]
[422565074,1779091460000,-44.32383743,0.00012425,2]
[422565073,1779091460000,-341.52,0.00012329,2]
[422565068,1779091460000,-801.91373375,0.00011828,2]
[422565071,1779091460000,-283.6,0.00012087,2]
[422565075,1779091461000,-239.27616257,0.00012425,2]
[422565076,1779091461000,-760.72383743,0.00012528,2]
[422565078,1779091461000,-1000.0,0.00012528,2]
[422565077,1779091461000,-1000.0,0.00012528,2]
[422565086,1779091462000,-456.57545542,0.00012627,2]
[422565084,1779091462000,-43.42454458,0.00012627,2]
[422565085,1779091462000,-500.0,0.00012627,2]
[422565083,1779091462000,-480.09066192,0.00012627,2]
[422565081,1779091462000,-369.90933808,0.00012627,2]
[422565082,1779091462000,-150.0,0.00012627,2]
[422565080,1779091462000,-830.09066192,0.00012627,2]
[422565079,1779091462000,-169.90933808,0.00012528,2]
[422565087,1779091463000,-53.45746819,0.00012627,2]
[422565089,1779091463000,-1000.0,0.00012628,2]
[422565088,1779091463000,-946.54253181,0.00012628,2]
[422565092,1779091464000,-993.48995437,0.00012628,2]
[422565091,1779091464000,-6.51004563,0.00012628,2]
[422565090,1779091464000,-1000.0,0.00012628,2]
[422565095,1779091465000,-1000.0,0.00012628,2]
[422565094,1779091465000,-1000.0,0.00012628,2]
[422565093,1779091465000,-1000.0,0.00012628,2]
[422565096,1779091466000,-1000.0,0.00012628,2]
[422565097,1779091467000,-1000.0,0.00012628,2]
[422565099,1779091472000,-200.0,0.00012628,2]
[422565100,1779091473000,-200.0,0.00012628,2]
[422565101,1779091474000,-200.0,0.00012628,2]
[422565102,1779091474000,-200.0,0.00012628,2]
[422565103,1779091474000,200.0,0.00030136,120]
[422565104,1779091474000,-200.0,0.00012628,2]
[422565106,1779091475000,-200.0,0.00012628,2]
[422565105,1779091475000,-200.0,0.00012628,2]
[422565108,1779091476000,-200.0,0.00012628,2]
[422565107,1779091476000,-200.0,0.00012628,2]
[422565109,1779091477000,-200.0,0.00012628,2]
[422565110,1779091481000,-371.0,0.00012628,2]
[422565111,1779091482000,201.55317959,0.00030136,120]
[422565113,1779091549000,5000.0,0.00030137,120]
[422565114,1779091617000,302.76115275,0.00026406,120]
[422565115,1779091648000,166.0650242,0.00026406,120]
[422565116,1779091740000,1000.0,0.00030136,120]
[422565151,1779091832000,-150.0,0.00013488,2]
[422565144,1779091832000,-163.0,0.000134,2]
[422565148,1779091832000,-150.0,0.00013488,2]
[422565143,1779091832000,-2930.63317543,0.00013319,2]
[422565147,1779091832000,-150.0,0.00013488,2]
[422565145,1779091832000,-150.0,0.00013488,2]
[422565149,1779091832000,-150.91358245,0.00013488,2]
[422565154,1779091832000,-150.0,0.00013488,2]
[422565150,1779091832000,-150.0,0.00013488,2]
[422565152,1779091832000,-150.0,0.00013488,2]
[422565153,1779091832000,-150.0,0.00013488,2]
[422565155,1779091832000,-150.0,0.00013488,2]
[422565156,1779091832000,-150.0,0.00013488,2]
[422565141,1779091832000,-283.6,0.00013101,2]
[422565166,1779091832000,-150.0,0.00013559,2]
[422565146,1779091832000,-152.51965428,0.00013488,2]
[422565140,1779091832000,-2930.63317543,0.00013055,2]
[422565133,1779091832000,-279175.98974563,0.00012628,2]
[422565135,1779091832000,-283.6,0.00012763,2]
[422565126,1779091832000,-300.0,0.00012443,2]
[422565125,1779091832000,-150.0,0.00012443,2]
[422565124,1779091832000,-150.0,0.00011899,2]
[422565127,1779091832000,-1200.0,0.00012443,2]
[422565129,1779091832000,-3051.7789098,0.00012444,2]
[422565128,1779091832000,-16562.869785,0.00012444,2]
[422565130,1779091832000,-2686.2203141,0.00012444,2]
[422565131,1779091832000,-3035.21624,0.00012528,2]
[422565132,1779091832000,-43836.43901351,0.00012618,2]
[422565134,1779091832000,-264.32121441,0.00012628,2]
[422565138,1779091832000,-215.11887611,0.00012827,2]
[422565157,1779091832000,-150.0,0.00013503,2]
[422565137,1779091832000,-2000.0,0.00012809,2]
[422565139,1779091832000,-622.23518063,0.00012965,2]
[422565136,1779091832000,-2930.63317543,0.00012792,2]
[422565142,1779091832000,-185.46,0.00013234,2]
[422565160,1779091832000,-255.0,0.00013538,2]
[422565164,1779091832000,-150.0,0.00013551,2]
[422565162,1779091832000,-150.0,0.00013545,2]
[422565186,1779091832000,-1680.0,0.00013687,2]
[422565184,1779091832000,-150.0,0.00013664,2]
[422565185,1779091832000,-150.0,0.00013677,2]
[422565190,1779091832000,-500.0,0.00013698,2]
[422565189,1779091832000,-475.1641071,0.00013698,2]
[422565188,1779091832000,-500.0,0.00013698,2]
[422565191,1779091832000,-515.61555642,0.00013698,2]
[422565192,1779091832000,-500.0,0.00013698,2]
[422565193,1779091832000,-500.0,0.00013698,2]
[422565194,1779091832000,-200.0,0.00013699,2]
[422565196,1779091832000,-150.0,0.00013702,2]
[422565197,1779091832000,-150.0,0.00013709,2]
[422565200,1779091832000,-227.899497,0.0001372,2]
[422565198,1779091832000,-150.0,0.00013718,2]
[422565199,1779091832000,-170.394402,0.0001372,2]
[422565187,1779091832000,-150.0,0.00013693,2]
[422565183,1779091832000,-150.0,0.00013661,2]
[422565195,1779091832000,-166.88,0.00013699,2]
[422565181,1779091832000,-150.0,0.00013654,2]
[422565182,1779091832000,-150.0,0.00013661,2]
[422565159,1779091832000,-150.0,0.00013535,2]
[422565158,1779091832000,-150.0,0.00013519,2]
[422565169,1779091832000,-150.0,0.00013567,2]
[422565170,1779091832000,-150.0,0.00013576,2]
[422565172,1779091832000,-150.0,0.00013582,2]
[422565173,1779091832000,-150.0,0.00013598,2]
[422565168,1779091832000,-150.0,0.00013567,2]
[422565175,1779091832000,-150.0,0.00013614,2]
[422565179,1779091832000,-150.0,0.00013645,2]
[422565171,1779091832000,-2930.63317543,0.00013582,2]
[422565177,1779091832000,-150.0,0.0001363,2]
[422565176,1779091832000,-150.0,0.00013624,2]
[422565180,1779091832000,-150.0,0.00013645,2]
[422565178,1779091832000,-150.0,0.0001363,2]
[422565174,1779091832000,-150.0,0.00013603,2]
[422565244,1779091833000,-150.0,0.00013987,2]
[422565235,1779091833000,-150.0,0.00013914,2]
[422565237,1779091833000,-150.0,0.00013928,2]
[422565233,1779091833000,-4000.0,0.000139,5]
[422565236,1779091833000,-150.0,0.00013916,2]
[422565240,1779091833000,-150.0,0.00013949,2]
[422565241,1779091833000,-150.0,0.00013961,2]
[422565239,1779091833000,-150.0,0.00013945,2]
[422565238,1779091833000,-150.0,0.00013929,2]
[422565242,1779091833000,-150.0,0.00013961,2]
[422565243,1779091833000,-150.0,0.00013977,2]
[422565234,1779091833000,-11218.60375452,0.000139,2]
[422565254,1779091833000,-500.0,0.00014,2]
[422565253,1779091833000,-513.18,0.00014,2]
[422565250,1779091833000,-500.0,0.00014,2]
[422565252,1779091833000,-500.0,0.00014,2]
[422565246,1779091833000,-150.0,0.00013992,2]
[422565248,1779091833000,-500.0,0.00014,2]
[422565247,1779091833000,-500.0,0.00014,2]
[422565245,1779091833000,-150.0,0.00013987,2]
[422565251,1779091833000,-500.0,0.00014,2]
[422565256,1779091833000,-500.0,0.00014,2]
[422565255,1779091833000,-500.0,0.00014,2]
[422565257,1779091833000,-500.0,0.00014,2]
[422565259,1779091833000,-500.0,0.00014,2]
[422565258,1779091833000,-500.0,0.00014,2]
[422565232,1779091833000,-150.0,0.00013898,2]
[422565249,1779091833000,-500.0,0.00014,2]
[422565231,1779091833000,-150.0,0.00013896,2]
[422565214,1779091833000,-150.0,0.00013787,2]
[422565227,1779091833000,-150.0,0.00013866,2]
[422565201,1779091833000,-170.005779,0.0001372,2]
[422565202,1779091833000,-150.0,0.00013724,2]
[422565203,1779091833000,-150.0,0.00013724,2]
[422565205,1779091833000,-176.794762,0.00013731,2]
[422565206,1779091833000,-697.393792,0.00013731,2]
[422565209,1779091833000,-150.0,0.00013756,2]
[422565207,1779091833000,-150.0,0.0001374,2]
[422565210,1779091833000,-150.0,0.0001376,2]
[422565208,1779091833000,-150.0,0.00013752,2]
[422565211,1779091833000,-150.0,0.00013772,2]
[422565213,1779091833000,-150.0,0.00013776,2]
[422565260,1779091833000,-500.0,0.00014,2]
[422565212,1779091833000,-150.0,0.00013773,2]
[422565216,1779091833000,-150.0,0.00013803,2]
[422565215,1779091833000,-150.0,0.00013803,2]
[422565218,1779091833000,-150.0,0.00013821,2]
[422565217,1779091833000,-150.0,0.00013819,2]
[422565220,1779091833000,-150.0,0.00013835,2]
[422565221,1779091833000,-150.0,0.0001384,2]
[422565219,1779091833000,-150.0,0.00013834,2]
[422565222,1779091833000,-150.0,0.00013844,2]
[422565228,1779091833000,-150.0,0.00013882,2]
[422565229,1779091833000,-150.0,0.00013882,2]
[422565224,1779091833000,-150.0,0.0001385,2]
[422565225,1779091833000,-150.0,0.00013862,2]
[422565226,1779091833000,-150.0,0.00013862,2]
[422565223,1779091833000,-2930.63317543,0.00013846,2]
[422565230,1779091833000,-150.0,0.00013891,2]
[422565263,1779091833000,-500.0,0.00014,2]
[422565204,1779091833000,-483.865941,0.00013731,2]
[422565265,1779091833000,-500.0,0.00014,2]
[422565297,1779091833000,-500.0,0.00014149,2]
[422565300,1779091833000,-150.0,0.0001415,2]
[422565298,1779091833000,-500.0,0.00014149,2]
[422565295,1779091833000,-150.0,0.0001413,2]
[422565296,1779091833000,-150.0,0.00014134,2]
[422565302,1779091833000,-500.0,0.00014152,2]
[422565301,1779091833000,-500.0,0.00014152,2]
[422565299,1779091833000,-500.0,0.00014149,2]
[422565304,1779091833000,-500.0,0.00014152,2]
[422565305,1779091833000,-4392.8177228,0.00014153,2]
[422565307,1779091833000,-150.0,0.00014154,2]
[422565316,1779091833000,-150.0,0.00014213,2]
[422565310,1779091833000,-150.0,0.00014179,2]
[422565303,1779091833000,-500.0,0.00014152,2]
[422565308,1779091833000,-150.0,0.00014166,2]
[422565313,1779091833000,-150.0,0.00014198,2]
[422565309,1779091833000,-150.0,0.00014169,2]
[422565315,1779091833000,-150.0,0.00014201,2]
[422565314,1779091833000,-150.0,0.00014198,2]
[422565311,1779091833000,-150.0,0.00014182,2]
[422565318,1779091833000,-11218.60375446,0.00014233,2]
[422565317,1779091833000,-150.0,0.00014229,2]
[422565320,1779091833000,-150.0,0.00014237,2]
[422565319,1779091833000,-150.0,0.00014237,2]
[422565321,1779091833000,-150.0,0.00014237,2]
[422565322,1779091833000,-150.0,0.00014237,2]
[422565323,1779091833000,-150.0,0.00014245,2]
[422565267,1779091833000,-500.0,0.00014,2]
[422565312,1779091833000,-150.0,0.00014193,2]
[422565293,1779091833000,-150.0,0.00014122,2]
[422565306,1779091833000,-16457.1853033,0.00014153,2]
[422565292,1779091833000,-150.0,0.00014119,2]
[422565261,1779091833000,-500.0,0.00014,2]
[422565264,1779091833000,-500.0,0.00014,2]
[422565268,1779091833000,-500.0,0.00014,2]
[422565269,1779091833000,-500.0,0.00014,2]
[422565273,1779091833000,-373.54,0.00014,2]
[422565272,1779091833000,-500.0,0.00014,2]
[422565270,1779091833000,-500.0,0.00014,2]
[422565274,1779091833000,-150.0,0.00014006,2]
[422565271,1779091833000,-500.0,0.00014,2]
[422565275,1779091833000,-150.0,0.00014008,2]
[422565277,1779091833000,-150.0,0.00014017,2]
[422565276,1779091833000,-11218.60375446,0.00014011,2]
[422565278,1779091833000,-150.0,0.00014024,2]
[422565279,1779091833000,-150.0,0.00014033,2]
[422565266,1779091833000,-500.0,0.00014,2]
[422565280,1779091833000,-150.0,0.0001404,2]
[422565282,1779091833000,-150.0,0.00014056,2]
[422565281,1779091833000,-150.0,0.0001404,2]
[422565284,1779091833000,-150.0,0.00014064,2]
[422565283,1779091833000,-150.0,0.00014059,2]
[422565287,1779091833000,-150.0,0.00014087,2]
[422565285,1779091833000,-150.0,0.00014071,2]
[422565290,1779091833000,-2930.63317543,0.00014109,2]
[422565289,1779091833000,-150.0,0.00014105,2]
[422565286,1779091833000,-835.0,0.00014087,5]
[422565288,1779091833000,-150.0,0.00014103,2]
[422565291,1779091833000,-150.0,0.00014119,2]
[422565262,1779091833000,-500.0,0.00014,2]
[422565294,1779091833000,-11218.60375446,0.00014122,2]
[422565324,1779091834000,-7486.92111426,0.0001425,2]
[422565348,1779091840000,-150.0,0.00014308,2]
[422565337,1779091840000,-48828.25568551,0.0001425,2]
[422565338,1779091840000,-93279.07748632,0.0001425,2]
[422565335,1779091840000,-133.51008137,0.0001425,2]
[422565352,1779091840000,-150.0,0.00014344,2]
[422565336,1779091840000,-374.68992995,0.0001425,2]
[422565341,1779091840000,-150.0,0.00014273,2]
[422565340,1779091840000,-150.0,0.00014261,2]
[422565339,1779091840000,-153.90305867,0.0001425,2]
[422565334,1779091840000,-150.0,0.00012758,2]
[422565343,1779091840000,-150.0,0.00014276,2]
[422565344,1779091840000,-150.0,0.00014281,2]
[422565345,1779091840000,-150.0,0.00014292,2]
[422565350,1779091840000,-150.0,0.00014324,2]
[422565349,1779091840000,-150.0,0.0001432,2]
[422565351,1779091840000,-150.0,0.0001434,2]
[422565346,1779091840000,-150.0,0.00014295,2]
[422565347,1779091840000,-150.0,0.00014305,2]
[422565342,1779091840000,-150.0,0.00014276,2]
[422565365,1779091841000,-1270.0,0.0001439,2]
[422565358,1779091841000,-150.0,0.00014371,2]
[422565359,1779091841000,-1935.09792886,0.00014373,2]
[422565353,1779091841000,-11218.60375446,0.00014344,2]
[422565354,1779091841000,-150.0,0.00014352,2]
[422565357,1779091841000,-150.0,0.00014369,2]
[422565355,1779091841000,-150.0,0.00014355,2]
[422565362,1779091841000,-58.80987035,0.00014373,2]
[422565356,1779091841000,-150.0,0.00014355,2]
[422565363,1779091841000,-936.72537622,0.00014373,2]
[422565370,1779091841000,-150.0,0.00014418,2]
[422565366,1779091841000,-150.0,0.00014403,2]
[422565367,1779091841000,-150.0,0.0001441,2]
[422565368,1779091841000,-2000.0,0.0001441,2]
[422565369,1779091841000,-150.0,0.00014415,2]
[422565372,1779091841000,-150.0,0.00014434,2]
[422565371,1779091841000,-150.0,0.00014434,2]
[422565373,1779091841000,-150.0,0.00014441,2]
[422565375,1779091841000,-2149.07604113,0.00014456,2]
[422565374,1779091841000,-150.0,0.0001445,2]
[422565364,1779091841000,-150.0,0.00014387,2]
[422565391,1779091843000,-7761.66471938,0.00014456,2]
[422565393,1779091843000,-150.0,0.00014457,2]
[422565394,1779091843000,-150.0,0.00014466,2]
[422565395,1779091843000,-150.0,0.00014468,2]
[422565390,1779091843000,-250.0,0.00014,2]
[422565396,1779091843000,-1458.44960117,0.00014478,2]
[422565392,1779091843000,-1307.86299395,0.00014456,2]
[422565397,1779091844000,-854.55039883,0.00014478,2]
[422565398,1779091844000,-150.0,0.00014481,2]
[422565399,1779091844000,-150.0,0.00014487,2]
[422565400,1779091844000,-150.0,0.00014487,2]
[422565403,1779091844000,-702.38528911,0.000145,5]
[422565402,1779091844000,-9.72803117,0.000145,5]
[422565401,1779091844000,-150.0,0.00014497,2]
[422565415,1779091846000,-1127.03198691,0.000145,5]
[422565455,1779091847000,-418.0,0.00014676,2]
[422565448,1779091847000,-174.23275331,0.0001465,7]
[422565457,1779091847000,-11218.60375446,0.00014678,2]
[422565450,1779091847000,-150.0,0.00014655,2]
[422565451,1779091847000,-150.0,0.00014671,2]
[422565452,1779091847000,-150.0,0.00014671,2]
[422565449,1779091847000,-150.0,0.00014653,2]
[422565454,1779091847000,-1224.0,0.00014676,2]
[422565447,1779091847000,-150.0,0.0001464,2]
[422565453,1779091847000,-266.68278567,0.00014673,7]
[422565456,1779091847000,-6056.0,0.00014676,2]
[422565461,1779091847000,-1076.01959627,0.000147,2]
[422565458,1779091847000,-163.0,0.0001468,2]
[422565469,1779091847000,-150.0,0.00014734,2]
[422565470,1779091847000,-150.0,0.0001475,2]
[422565460,1779091847000,-150.0,0.00014698,2]
[422565462,1779091847000,-16200.0,0.000147,5]
[422565464,1779091847000,-150.0,0.00014702,2]
[422565463,1779091847000,-150.0,0.00014701,2]
[422565468,1779091847000,-433.0,0.00014733,2]
[422565466,1779091847000,-150.0,0.00014718,2]
[422565446,1779091847000,-150.0,0.00014639,2]
[422565465,1779091847000,-150.0,0.00014714,2]
[422565467,1779091847000,-150.0,0.00014722,2]
[422565459,1779091847000,-150.0,0.00014687,2]
[422565436,1779091847000,-319.18,0.000146,2]
[422565444,1779091847000,-150.0,0.00014634,2]
[422565440,1779091847000,-150.0,0.00014612,2]
[422565472,1779091847000,-150.0,0.0001475,2]
[422565417,1779091847000,-592.17854734,0.000145,5]
[422565418,1779091847000,-83.0101527,0.00014513,2]
[422565416,1779091847000,-5668.67614547,0.000145,5]
[422565419,1779091847000,-66.9898473,0.00014513,2]
[422565420,1779091847000,-150.0,0.00014513,2]
[422565422,1779091847000,-150.0,0.00014529,2]
[422565421,1779091847000,-150.0,0.00014525,2]
[422565426,1779091847000,-37.71532116,0.00014558,2]
[422565425,1779091847000,-112.28467884,0.00014558,2]
[422565429,1779091847000,-11218.60375446,0.00014567,2]
[422565423,1779091847000,-150.0,0.00014545,2]
[422565439,1779091847000,-150.0,0.00014608,2]
[422565428,1779091847000,-150.0,0.0001456,2]
[422565427,1779091847000,-152.0,0.0001456,2]
[422565424,1779091847000,-150.0,0.00014546,2]
[422565430,1779091847000,-150.0,0.00014576,2]
[422565443,1779091847000,-150.0,0.00014629,2]
[422565445,1779091847000,-2930.63317543,0.00014636,2]
[422565433,1779091847000,-150.0,0.00014592,2]
[422565434,1779091847000,-150.0,0.00014592,2]
[422565442,1779091847000,-150.0,0.00014623,2]
[422565438,1779091847000,-12200.0,0.000146,5]
[422565441,1779091847000,-150.0,0.00014612,2]
[422565437,1779091847000,-159.88,0.000146,2]
[422565432,1779091847000,-150.0,0.00014583,2]
[422565431,1779091847000,-150.0,0.00014578,2]
[422565474,1779091847000,-150.0,0.00014756,2]
[422565492,1779091847000,-10525.08321934,0.00014836,2]
[422565478,1779091847000,-150.0,0.00014781,2]
[422565511,1779091847000,-894.80366889,0.000149,2]
[422565508,1779091847000,-150.0,0.00014898,2]
[422565512,1779091847000,-4000.0,0.000149,5]
[422565515,1779091847000,-9724.79533392,0.000149,2]
[422565525,1779091847000,-150.0,0.00014925,2]
[422565526,1779091847000,-150.0,0.00014929,2]
[422565514,1779091847000,-1111.02259689,0.000149,2]
[422565516,1779091847000,-150.0,0.00014907,2]
[422565520,1779091847000,-3544.0,0.00014913,2]
[422565517,1779091847000,-150.0,0.00014907,2]
[422565519,1779091847000,-150.0,0.00014913,2]
[422565518,1779091847000,-500.0,0.00014912,2]
[422565523,1779091847000,-150.0,0.00014915,2]
[422565524,1779091847000,-150.0,0.00014923,2]
[422565521,1779091847000,-1354.0,0.00014913,2]
[422565522,1779091847000,-927.0,0.00014913,2]
[422565527,1779091847000,-150.0,0.00014939,2]
[422565529,1779091847000,-150.0,0.00014955,2]
[422565528,1779091847000,-1459.31751076,0.00014942,2]
[422565533,1779091847000,-150.00000001,0.00014986,2]
[422565532,1779091847000,-156.51155349,0.00014986,2]
[422565531,1779091847000,-300.0,0.0001498,2]
[422565530,1779091847000,-150.0,0.00014971,2]
[422565534,1779091847000,-151.18867875,0.00014986,2]
[422565476,1779091847000,-150.0,0.00014765,2]
[422565509,1779091847000,-2930.63317543,0.000149,2]
[422565505,1779091847000,-2036.945,0.0001488,2]
[422565510,1779091847000,-5000.0,0.000149,2]
[422565507,1779091847000,-150.0,0.00014892,2]
[422565480,1779091847000,-11218.60375446,0.00014789,2]
[422565483,1779091847000,-20300.0,0.000148,5]
[422565477,1779091847000,-150.0,0.00014772,2]
[422565485,1779091847000,-403.681537,0.00014812,7]
[422565482,1779091847000,-150.0,0.00014797,2]
[422565486,1779091847000,-221.42003227,0.00014812,7]
[422565484,1779091847000,-150.0,0.0001481,2]
[422565488,1779091847000,-150.0,0.00014813,2]
[422565487,1779091847000,-150.0,0.00014813,2]
[422565490,1779091847000,-150.0,0.00014829,2]
[422565513,1779091847000,-11218.60375446,0.000149,2]
[422565501,1779091847000,-150.0,0.00014871,2]
[422565489,1779091847000,-150.0,0.0001482,2]
[422565500,1779091847000,-150.0,0.0001486,2]
[422565491,1779091847000,-150.0,0.00014829,2]
[422565504,1779091847000,-171.331,0.0001488,2]
[422565496,1779091847000,-380.77622,0.0001485,2]
[422565503,1779091847000,-200.0,0.0001488,2]
[422565502,1779091847000,-150.0,0.00014876,2]
[422565498,1779091847000,-380.77623,0.0001485,2]
[422565506,1779091847000,-185.46,0.00014888,2]
[422565499,1779091847000,-150.0,0.0001485,2]
[422565493,1779091847000,-3632.0,0.00014838,2]
[422565495,1779091847000,-150.0,0.00014844,2]
[422565494,1779091847000,-150.0,0.00014844,2]
[422565497,1779091847000,-380.77623,0.0001485,2]
[422565542,1779091848000,-284.74154206,0.00014986,2]
[422565536,1779091848000,-150.0,0.00014986,2]
[422565535,1779091848000,-151.83416567,0.00014986,2]
[422565537,1779091848000,-1910.0,0.00014986,2]
[422565540,1779091848000,-150.0,0.00014986,2]
[422565539,1779091848000,-150.0,0.00014986,2]
[422565549,1779091848000,-141881.99686083,0.00015,2]
[422565538,1779091848000,-150.00000001,0.00014986,2]
[422565541,1779091848000,-270.89818764,0.00014986,2]
[422565551,1779091848000,-253.52,0.00015,2]
[422565548,1779091848000,-150.0,0.00015,2]
[422565546,1779091848000,-300.0,0.00014999,2]
[422565543,1779091848000,-500.0,0.00014999,2]
[422565550,1779091848000,-9594.79998017,0.00015,2]
[422565544,1779091848000,-499.8,0.00014999,3]
[422565545,1779091848000,-428.84764213,0.00014999,2]
[422565547,1779091848000,-1001.0,0.00015,5]
[422565552,1779091903000,226.85,0.00030137,120]
[422565555,1779092056000,157.0,7.057e-05,2]
[422565557,1779092104000,158.0,0.0002906,120]
[422565559,1779092171000,180.88,0.00028583,120]
[422565561,1779092407000,159.0,0.0002829,120]
[422565562,1779092409000,159.0,0.00029705,120]